fUSD/lending_fUSD_20260614
["ID","MTS","AMOUNT","RATE_DAILY","PERIOD"]
[425057802,1781447517000,-1200.69,0.00029863,8]
[425057800,1781447517000,-801.17,0.00029863,8]
[425057805,1781447517000,-1573.21,0.00029863,8]
[425057801,1781447517000,-1300.69,0.00029863,8]
[425057803,1781447517000,-985.3,0.00029863,8]
[425057804,1781447517000,-1007.63,0.00029863,8]
[425057806,1781447517000,-500.0,0.00029863,8]
[425057808,1781447517000,-1067.78,0.00029863,8]
[425057810,1781447517000,-500.0,0.00029863,8]
[425057816,1781447517000,-1285.32,0.00029863,8]
[425057813,1781447517000,-500.0,0.00029863,8]
[425057814,1781447517000,-1224.99,0.00029863,8]
[425057844,1781447517000,-500.0,0.00029863,8]
[425057901,1781447517000,-899.88,0.00029863,8]
[425057857,1781447517000,-500.0,0.00029863,8]
[425057873,1781447517000,-1031.94,0.00029863,8]
[425057875,1781447517000,-500.0,0.00029863,8]
[425057878,1781447517000,-1604.32,0.00029863,8]
[425057880,1781447517000,-1015.25,0.00029863,8]
[425057882,1781447517000,-500.0,0.00029863,8]
[425057884,1781447517000,-1047.49,0.00029863,8]
[425057885,1781447517000,-500.0,0.00029863,8]
[425057893,1781447517000,-2107.14,0.00029863,8]
[425057887,1781447517000,-500.0,0.00029863,8]
[425057891,1781447517000,-1037.86,0.00029863,8]
[425057889,1781447517000,-500.0,0.00029863,8]
[425057886,1781447517000,-500.0,0.00029863,8]
[425057890,1781447517000,-500.0,0.00029863,8]
[425057883,1781447517000,-571.28193591,0.00029863,8]
[425057888,1781447517000,-500.0,0.00029863,8]
[425057892,1781447517000,-773.85,0.00029863,8]
[425057902,1781447517000,-500.0,0.00029863,8]
[425057895,1781447517000,-766.55,0.00029863,8]
[425057894,1781447517000,-1207.41,0.00029863,8]
[425057897,1781447517000,-500.0,0.00029863,8]
[425057905,1781447517000,-1195.63,0.00029863,8]
[425057896,1781447517000,-500.0,0.00029863,8]
[425057904,1781447517000,-1425.15,0.00029863,8]
[425057903,1781447517000,-671.88,0.00029863,8]
[425057898,1781447517000,-508.13,0.00029863,8]
[425057899,1781447517000,-1099.99,0.00029863,8]
[425057900,1781447517000,-586.53,0.00029863,8]
[425057876,1781447517000,-500.0,0.00029863,8]
[425057877,1781447517000,-500.0,0.00029863,8]
[425057856,1781447517000,-500.0,0.00029863,8]
[425057879,1781447517000,-500.0,0.00029863,8]
[425057846,1781447517000,-500.0,0.00029863,8]
[425057847,1781447517000,-500.0,0.00029863,8]
[425057848,1781447517000,-500.0,0.00029863,8]
[425057845,1781447517000,-688.19,0.00029863,8]
[425057849,1781447517000,-500.0,0.00029863,8]
[425057853,1781447517000,-1189.57,0.00029863,8]
[425057855,1781447517000,-1222.28,0.00029863,8]
[425057874,1781447517000,-500.0,0.00029863,8]
[425057854,1781447517000,-500.0,0.00029863,8]
[425057852,1781447517000,-608.15,0.00029863,8]
[425057851,1781447517000,-411.37042492,0.00029863,8]
[425057858,1781447517000,-1452.09,0.00029863,8]
[425057860,1781447517000,-500.0,0.00029863,8]
[425057850,1781447517000,-500.0,0.00029863,8]
[425057862,1781447517000,-672.85,0.00029863,8]
[425057865,1781447517000,-500.0,0.00029863,8]
[425057870,1781447517000,-532.02,0.00029863,8]
[425057881,1781447517000,-664.01,0.00029863,8]
[425057871,1781447517000,-500.0,0.00029863,8]
[425057864,1781447517000,-500.0,0.00029863,8]
[425057863,1781447517000,-500.0,0.00029863,8]
[425057872,1781447517000,-645.07375574,0.00029863,8]
[425057861,1781447517000,-1053.08,0.00029863,8]
[425057867,1781447517000,-500.0,0.00029863,8]
[425057868,1781447517000,-500.0,0.00029863,8]
[425057859,1781447517000,-500.0,0.00029863,8]
[425057869,1781447517000,-1281.05,0.00029863,8]
[425057866,1781447517000,-500.0,0.00029863,8]
[425057948,1781447518000,-500.0,0.00029863,8]
[425057947,1781447518000,-500.0,0.00029863,8]
[425057945,1781447518000,-648.3,0.00029863,8]
[425057946,1781447518000,-500.0,0.00029863,8]
[425057942,1781447518000,-520.69,0.00029863,8]
[425057941,1781447518000,-500.0,0.00029863,8]
[425057940,1781447518000,-534.02,0.00029863,8]
[425057944,1781447518000,-500.0,0.00029863,8]
[425057943,1781447518000,-1217.4,0.00029863,8]
[425057936,1781447518000,-532.93097207,0.00029863,8]
[425057939,1781447518000,-790.09,0.00029863,8]
[425057949,1781447518000,-500.0,0.00029863,8]
[425057961,1781447518000,-500.0,0.00029863,8]
[425057951,1781447518000,-1022.53,0.00029863,8]
[425057950,1781447518000,-500.0,0.00029863,8]
[425057954,1781447518000,-500.0,0.00029863,8]
[425057953,1781447518000,-597.42,0.00029863,8]
[425057955,1781447518000,-1193.0,0.00029863,8]
[425057957,1781447518000,-540.74774324,0.00029863,8]
[425057960,1781447518000,-1254.7,0.00029863,8]
[425057958,1781447518000,-500.0,0.00029863,8]
[425057962,1781447518000,-689.06,0.00029863,8]
[425057959,1781447518000,-500.0,0.00029863,8]
[425057956,1781447518000,-573.76,0.00029863,8]
[425057963,1781447518000,-723.54,0.00029863,8]
[425057938,1781447518000,-500.0,0.00029863,8]
[425057952,1781447518000,-543.72,0.00029863,8]
[425057937,1781447518000,-622.15380581,0.00029863,8]
[425057931,1781447518000,-500.0,0.00029863,8]
[425057935,1781447518000,-556.37,0.00029863,8]
[425057964,1781447518000,-1746.88,0.00029863,8]
[425057906,1781447518000,-1398.15,0.00029863,8]
[425057910,1781447518000,-500.0,0.00029863,8]
[425057911,1781447518000,-500.0,0.00029863,8]
[425057918,1781447518000,-638.31,0.00029863,8]
[425057914,1781447518000,-554.77,0.00029863,8]
[425057913,1781447518000,-1132.03,0.00029863,8]
[425057909,1781447518000,-500.0,0.00029863,8]
[425057916,1781447518000,-500.0,0.00029863,7]
[425057907,1781447518000,-520.02,0.00029863,8]
[425057912,1781447518000,-500.0,0.00029863,8]
[425057915,1781447518000,-607.25,0.00029863,8]
[425057917,1781447518000,-591.5192856,0.00029863,8]
[425057920,1781447518000,-500.0,0.00029863,8]
[425057922,1781447518000,-853.99,0.00029863,8]
[425057921,1781447518000,-500.0,0.00029863,8]
[425057919,1781447518000,-510.28,0.00029863,8]
[425057930,1781447518000,-500.0,0.00029863,8]
[425057923,1781447518000,-806.88,0.00029863,8]
[425057924,1781447518000,-500.0,0.00029863,8]
[425057925,1781447518000,-500.0,0.00029863,8]
[425057929,1781447518000,-866.85,0.00029863,8]
[425057927,1781447518000,-500.0,0.00029863,8]
[425057928,1781447518000,-2153.84,0.00029863,8]
[425057926,1781447518000,-544.6,0.00029863,8]
[425057934,1781447518000,-500.0,0.00029863,8]
[425057932,1781447518000,-500.0,0.00029863,8]
[425057933,1781447518000,-815.68,0.00029863,8]
[425057908,1781447518000,-841.95,0.00029863,8]
[425057967,1781447518000,-784.28,0.00029863,8]
[425057969,1781447518000,-872.27,0.00029863,8]
[425058000,1781447518000,-500.0,0.00029863,8]
[425057997,1781447518000,-536.09,0.00029863,8]
[425057998,1781447518000,-611.86,0.00029863,8]
[425058002,1781447518000,-500.0,0.00029863,8]
[425058003,1781447518000,-1285.7,0.00029863,8]
[425058013,1781447518000,-681.48,0.00029863,8]
[425058004,1781447518000,-500.0,0.00029863,8]
[425058011,1781447518000,-577.76,0.00029863,8]
[425058012,1781447518000,-638.67,0.00029863,8]
[425058007,1781447518000,-500.0,0.00029863,8]
[425058014,1781447518000,-500.0,0.00029863,8]
[425058006,1781447518000,-500.0,0.00029863,8]
[425057990,1781447518000,-500.0,0.00029863,8]
[425058005,1781447518000,-694.6,0.00029863,8]
[425058010,1781447518000,-694.97,0.00029863,8]
[425058015,1781447518000,-1019.53,0.00029863,8]
[425058017,1781447518000,-500.0,0.00029863,8]
[425058018,1781447518000,-500.0,0.00029863,8]
[425058019,1781447518000,-770.14,0.00029863,8]
[425058023,1781447518000,-1236.08,0.00029863,8]
[425058020,1781447518000,-606.2,0.00029863,8]
[425058022,1781447518000,-648.66,0.00029863,8]
[425058021,1781447518000,-500.0,0.00029863,8]
[425058024,1781447518000,-500.0,0.00029863,8]
[425058016,1781447518000,-500.0,0.00029863,8]
[425057968,1781447518000,-500.0,0.00029863,8]
[425058009,1781447518000,-500.0,0.00029863,8]
[425057996,1781447518000,-529.52,0.00029863,8]
[425058008,1781447518000,-500.0,0.00029863,8]
[425057995,1781447518000,-1199.94,0.00029863,8]
[425057999,1781447518000,-1220.66,0.00029863,8]
[425057970,1781447518000,-500.0,0.00029863,8]
[425057976,1781447518000,-639.31,0.00029863,8]
[425057965,1781447518000,-500.0,0.00029863,8]
[425057974,1781447518000,-500.0,0.00029863,8]
[425057975,1781447518000,-500.0,0.00029863,8]
[425057972,1781447518000,-500.0,0.00029863,8]
[425057973,1781447518000,-500.0,0.00029863,8]
[425057971,1781447518000,-559.91,0.00029863,8]
[425057978,1781447518000,-504.6,0.00029863,8]
[425057986,1781447518000,-500.0,0.00029863,8]
[425057987,1781447518000,-500.0,0.00029863,8]
[425057988,1781447518000,-448.45779844,0.00029863,8]
[425057977,1781447518000,-623.88,0.00029863,8]
[425057966,1781447518000,-500.0,0.00029863,8]
[425057991,1781447518000,-446.710515,0.00029863,8]
[425057980,1781447518000,-715.69,0.00029863,8]
[425058001,1781447518000,-1992.83,0.00029863,8]
[425057994,1781447518000,-500.0,0.00029863,8]
[425057993,1781447518000,-714.38,0.00029863,8]
[425057992,1781447518000,-500.0,0.00029863,8]
[425057989,1781447518000,-575.90710518,0.00029863,8]
[425057982,1781447518000,-500.0,0.00029863,8]
[425057979,1781447518000,-533.2,0.00029863,8]
[425057983,1781447518000,-892.45,0.00029863,8]
[425057984,1781447518000,-500.0,0.00029863,8]
[425057985,1781447518000,-566.53,0.00029863,8]
[425057981,1781447518000,-1046.11,0.00029863,8]
[425058063,1781447519000,-500.0,0.00029863,8]
[425058073,1781447519000,-1038.13,0.00029863,8]
[425058062,1781447519000,-500.0,0.00029863,8]
[425058074,1781447519000,-519.48,0.00029863,8]
[425058059,1781447519000,-500.0,0.00029863,8]
[425058052,1781447519000,-836.13,0.00029863,8]
[425058057,1781447519000,-500.0,0.00029863,8]
[425058058,1781447519000,-180.4012854,0.00029863,8]
[425058061,1781447519000,-500.0,0.00029863,8]
[425058084,1781447519000,-657.3,0.00029863,8]
[425058065,1781447519000,-747.07,0.00029863,8]
[425058056,1781447519000,-578.24,0.00029863,8]
[425058071,1781447519000,-1016.47,0.00029863,8]
[425058072,1781447519000,-500.0,0.00029863,8]
[425058066,1781447519000,-500.0,0.00029863,8]
[425058070,1781447519000,-500.0,0.00029863,8]
[425058067,1781447519000,-1199.11,0.00029863,8]
[425058064,1781447519000,-500.0,0.00029863,8]
[425058068,1781447519000,-579.71,0.00029863,8]
[425058076,1781447519000,-856.87,0.00029863,8]
[425058075,1781447519000,-500.0,0.00029863,8]
[425058083,1781447519000,-500.0,0.00029863,8]
[425058080,1781447519000,-500.0,0.00029863,8]
[425058079,1781447519000,-500.0,0.00029863,8]
[425058082,1781447519000,-1068.73,0.00029863,8]
[425058085,1781447519000,-1514.46,0.00029863,8]
[425058069,1781447519000,-500.0,0.00029863,8]
[425058055,1781447519000,-1329.36,0.00029863,8]
[425058025,1781447519000,-500.0,0.00029863,8]
[425058051,1781447519000,-500.0,0.00029863,8]
[425058034,1781447519000,-500.0,0.00029863,8]
[425058028,1781447519000,-500.0,0.00029863,8]
[425058026,1781447519000,-500.0,0.00029863,8]
[425058033,1781447519000,-500.0,0.00029863,8]
[425058029,1781447519000,-500.0,0.00029863,8]
[425058030,1781447519000,-1794.38,0.00029863,8]
[425058035,1781447519000,-500.0,0.00029863,8]
[425058037,1781447519000,-1362.07,0.00029863,8]
[425058031,1781447519000,-752.56,0.00029863,8]
[425058027,1781447519000,-1086.15,0.00029863,8]
[425058038,1781447519000,-1214.87,0.00029863,8]
[425058036,1781447519000,-500.0,0.00029863,8]
[425058053,1781447519000,-500.0,0.00029863,8]
[425058032,1781447519000,-500.0,0.00029863,8]
[425058039,1781447519000,-712.15,0.00029863,8]
[425058041,1781447519000,-500.0,0.00029863,8]
[425058043,1781447519000,-710.6,0.00029863,8]
[425058042,1781447519000,-500.0,0.00029863,8]
[425058047,1781447519000,-1530.48,0.00029863,8]
[425058049,1781447519000,-500.0,0.00029863,8]
[425058044,1781447519000,-556.38,0.00029863,8]
[425058045,1781447519000,-932.78,0.00029863,8]
[425058046,1781447519000,-500.0,0.00029863,8]
[425058048,1781447519000,-500.0,0.00029863,8]
[425058050,1781447519000,-270.22699417,0.00029863,8]
[425058054,1781447519000,-500.0,0.00029863,8]
[425058040,1781447519000,-658.12,0.00029863,8]
[425058077,1781447519000,-597.59,0.00029863,8]
[425058060,1781447519000,-987.41,0.00029863,8]
[425058081,1781447519000,-259.64335122,0.00029863,8]
[425058117,1781447519000,-151.0,0.00029863,7]
[425058121,1781447519000,-500.0,0.00029863,8]
[425058120,1781447519000,-648.15,0.00029863,8]
[425058118,1781447519000,-564.84,0.00029863,8]
[425058115,1781447519000,-500.0,0.00029863,8]
[425058119,1781447519000,-500.0,0.00029863,8]
[425058123,1781447519000,-835.21,0.00029863,8]
[425058125,1781447519000,-500.0,0.00029863,8]
[425058124,1781447519000,-500.0,0.00029863,8]
[425058126,1781447519000,-500.0,0.00029863,8]
[425058127,1781447519000,-880.78,0.00029863,8]
[425058129,1781447519000,-616.02,0.00029863,8]
[425058131,1781447519000,-3014.18,0.00029863,8]
[425058130,1781447519000,-500.0,0.00029863,8]
[425058128,1781447519000,-500.0,0.00029863,8]
[425058134,1781447519000,-500.0,0.00029863,8]
[425058132,1781447519000,-500.0,0.00029863,8]
[425058133,1781447519000,-500.0,0.00029863,8]
[425058135,1781447519000,-500.0,0.00029863,8]
[425058137,1781447519000,-151.0,0.00029863,7]
[425058138,1781447519000,-209.712122,0.00029863,7]
[425058139,1781447519000,-151.0,0.00029863,7]
[425058142,1781447519000,-151.0,0.00029863,7]
[425058140,1781447519000,-869.12,0.00029863,8]
[425058141,1781447519000,-209.712122,0.00029863,7]
[425058143,1781447519000,-151.0,0.00029863,7]
[425058086,1781447519000,-663.09,0.00029863,8]
[425058116,1781447519000,-657.48,0.00029863,8]
[425058114,1781447519000,-532.23,0.00029863,8]
[425058136,1781447519000,-500.0,0.00029863,8]
[425058111,1781447519000,-500.0,0.00029863,8]
[425058113,1781447519000,-151.0,0.00029863,7]
[425058078,1781447519000,-565.44,0.00029863,8]
[425058088,1781447519000,-944.34,0.00029863,8]
[425058096,1781447519000,-702.19,0.00029863,8]
[425058097,1781447519000,-534.24789147,0.00029863,8]
[425058091,1781447519000,-500.0,0.00029863,8]
[425058090,1781447519000,-500.0,0.00029863,8]
[425058089,1781447519000,-675.87,0.00029863,8]
[425058093,1781447519000,-881.04,0.00029863,8]
[425058094,1781447519000,-500.0,0.00029863,8]
[425058092,1781447519000,-1042.52,0.00029863,8]
[425058095,1781447519000,-642.31,0.00029863,8]
[425058101,1781447519000,-500.0,0.00029863,8]
[425058087,1781447519000,-500.0,0.00029863,8]
[425058102,1781447519000,-500.0,0.00029863,8]
[425058122,1781447519000,-2000.0,0.00029863,2]
[425058098,1781447519000,-500.0,0.00029863,8]
[425058112,1781447519000,-500.0,0.00029863,8]
[425058110,1781447519000,-151.0,0.00029863,7]
[425058107,1781447519000,-500.0,0.00029863,8]
[425058099,1781447519000,-845.18,0.00029863,8]
[425058109,1781447519000,-1150.58,0.00029863,8]
[425058106,1781447519000,-500.0,0.00029863,8]
[425058105,1781447519000,-500.0,0.00029863,8]
[425058104,1781447519000,-815.38,0.00029863,8]
[425058103,1781447519000,-729.66,0.00029863,8]
[425058100,1781447519000,-631.21,0.00029863,8]
[425058108,1781447519000,-500.0,0.00029863,8]
[425058166,1781447520000,-1661.43,0.00029863,8]
[425058167,1781447520000,-743.01,0.00029863,8]
[425058175,1781447520000,-662.85,0.00029863,8]
[425058168,1781447520000,-500.0,0.00029863,8]
[425058169,1781447520000,-553.44,0.00029863,8]
[425058171,1781447520000,-920.43,0.00029863,8]
[425058173,1781447520000,-500.0,0.00029863,8]
[425058181,1781447520000,-500.0,0.00029863,8]
[425058174,1781447520000,-509.71,0.00029863,8]
[425058172,1781447520000,-1059.33,0.00029863,8]
[425058177,1781447520000,-605.61,0.00029863,8]
[425058180,1781447520000,-2667.75,0.00029863,8]
[425058176,1781447520000,-500.0,0.00029863,8]
[425058178,1781447520000,-698.01,0.00029863,8]
[425058182,1781447520000,-500.0,0.00029863,8]
[425058184,1781447520000,-500.0,0.00029863,8]
[425058165,1781447520000,-2037.999517,0.00029863,7]
[425058183,1781447520000,-500.0,0.00029863,8]
[425058179,1781447520000,-500.0,0.00029863,8]
[425058164,1781447520000,-500.0,0.00029863,8]
[425058149,1781447520000,-500.0,0.00029863,8]
[425058162,1781447520000,-692.78,0.00029863,8]
[425058194,1781447520000,-500.0,0.00029863,8]
[425058146,1781447520000,-209.712122,0.00029863,7]
[425058144,1781447520000,-209.712122,0.00029863,7]
[425058145,1781447520000,-992.68,0.00029863,8]
[425058147,1781447520000,-500.0,0.00029863,8]
[425058148,1781447520000,-1461.98,0.00029863,8]
[425058155,1781447520000,-1539.52,0.00029863,8]
[425058157,1781447520000,-500.0,0.00029863,8]
[425058154,1781447520000,-641.52,0.00029863,8]
[425058158,1781447520000,-2037.999517,0.00029863,7]
[425058153,1781447520000,-2037.999517,0.00029863,7]
[425058156,1781447520000,-500.0,0.00029863,8]
[425058151,1781447520000,-500.0,0.00029863,8]
[425058150,1781447520000,-2037.999517,0.00029863,7]
[425058152,1781447520000,-3250.13,0.00029863,8]
[425058160,1781447520000,-500.0,0.00029863,8]
[425058170,1781447520000,-500.0,0.00029863,8]
[425058159,1781447520000,-870.51,0.00029863,8]
[425058163,1781447520000,-540.29,0.00029863,8]
[425058161,1781447520000,-500.0,0.00029863,8]
[425058190,1781447520000,-1169.04,0.00029863,8]
[425058186,1781447520000,-1701.25,0.00029863,8]
[425058187,1781447520000,-592.38,0.00029863,8]
[425058207,1781447520000,-2663.08,0.00029863,8]
[425058210,1781447520000,-623.6,0.00029863,8]
[425058216,1781447520000,-543.63,0.00029863,8]
[425058214,1781447520000,-1157.66,0.00029863,8]
[425058212,1781447520000,-550.82,0.00029863,8]
[425058213,1781447520000,-500.0,0.00029863,8]
[425058215,1781447520000,-842.22,0.00029863,8]
[425058217,1781447520000,-500.0,0.00029863,8]
[425058211,1781447520000,-500.0,0.00029863,8]
[425058221,1781447520000,-703.84,0.00029863,8]
[425058220,1781447520000,-410.73783554,0.00029863,8]
[425058223,1781447520000,-500.0,0.00029863,8]
[425058224,1781447520000,-1427.79,0.00029863,8]
[425058226,1781447520000,-500.0,0.00029863,8]
[425058228,1781447520000,-500.0,0.00029863,8]
[425058227,1781447520000,-500.0,0.00029863,8]
[425058230,1781447520000,-877.23,0.00029863,8]
[425058229,1781447520000,-500.0,0.00029863,8]
[425058222,1781447520000,-500.0,0.00029863,8]
[425058209,1781447520000,-580.54,0.00029863,8]
[425058225,1781447520000,-5751.63,0.00029863,8]
[425058219,1781447520000,-1675.9,0.00029863,8]
[425058218,1781447520000,-500.0,0.00029863,8]
[425058189,1781447520000,-500.0,0.00029863,8]
[425058188,1781447520000,-500.0,0.00029863,8]
[425058185,1781447520000,-674.5,0.00029863,8]
[425058192,1781447520000,-500.0,0.00029863,8]
[425058191,1781447520000,-558.94,0.00029863,8]
[425058195,1781447520000,-605.88,0.00029863,8]
[425058197,1781447520000,-702.01,0.00029863,8]
[425058202,1781447520000,-500.0,0.00029863,8]
[425058193,1781447520000,-456.28961243,0.00029863,8]
[425058199,1781447520000,-502.0,0.00029863,8]
[425058198,1781447520000,-500.0,0.00029863,8]
[425058205,1781447520000,-966.37,0.00029863,8]
[425058200,1781447520000,-2238.28,0.00029863,8]
[425058206,1781447520000,-500.0,0.00029863,8]
[425058201,1781447520000,-682.04,0.00029863,8]
[425058203,1781447520000,-500.0,0.00029863,8]
[425058204,1781447520000,-500.0,0.00029863,8]
[425058196,1781447520000,-720.7,0.00029863,8]
[425058208,1781447520000,-2017.64,0.00029863,8]
[425058279,1781447521000,-1109.22,0.00029863,8]
[425058268,1781447521000,-518.74,0.00029863,8]
[425058271,1781447521000,-500.0,0.00029863,8]
[425058269,1781447521000,-658.84,0.00029863,8]
[425058262,1781447521000,-500.0,0.00029863,8]
[425058257,1781447521000,-500.0,0.00029863,8]
[425058263,1781447521000,-500.0,0.00029863,8]
[425058258,1781447521000,-458.89732208,0.00029863,8]
[425058266,1781447521000,-528.8,0.00029863,8]
[425058278,1781447521000,-540.32,0.00029863,8]
[425058264,1781447521000,-742.57,0.00029863,8]
[425058260,1781447521000,-500.0,0.00029863,8]
[425058270,1781447521000,-583.77351415,0.00029863,8]
[425058283,1781447521000,-508.2,0.00029863,8]
[425058276,1781447521000,-528.7,0.00029863,8]
[425058273,1781447521000,-500.0,0.00029863,8]
[425058277,1781447521000,-636.66,0.00029863,8]
[425058275,1781447521000,-1282.28,0.00029863,8]
[425058274,1781447521000,-610.83,0.00029863,8]
[425058281,1781447521000,-1749.66,0.00029863,8]
[425058280,1781447521000,-4001.43,0.00029863,8]
[425058284,1781447521000,-1023.6,0.00029863,8]
[425058282,1781447521000,-1000.0,0.00029863,8]
[425058285,1781447521000,-1407.31,0.00029863,8]
[425058290,1781447521000,-563.46,0.00029863,8]
[425058261,1781447521000,-2931.64,0.00029863,8]
[425058272,1781447521000,-1682.54,0.00029863,8]
[425058265,1781447521000,-3706.06,0.00029863,8]
[425058245,1781447521000,-825.79,0.00029863,8]
[425058259,1781447521000,-500.0,0.00029863,8]
[425058232,1781447521000,-1056.35,0.00029863,8]
[425058233,1781447521000,-500.0,0.00029863,8]
[425058231,1781447521000,-546.64,0.00029863,8]
[425058234,1781447521000,-500.0,0.00029863,8]
[425058236,1781447521000,-500.0,0.00029863,8]
[425058235,1781447521000,-940.15,0.00029863,8]
[425058244,1781447521000,-1116.26,0.00029863,8]
[425058289,1781447521000,-11664.09,0.00029863,8]
[425058239,1781447521000,-500.0,0.00029863,8]
[425058238,1781447521000,-10759.52,0.00029863,8]
[425058237,1781447521000,-500.0,0.00029863,8]
[425058240,1781447521000,-679.83,0.00029863,8]
[425058267,1781447521000,-500.0,0.00029863,8]
[425058241,1781447521000,-1143.85,0.00029863,8]
[425058242,1781447521000,-500.0,0.00029863,8]
[425058246,1781447521000,-500.0,0.00029863,8]
[425058250,1781447521000,-500.0,0.00029863,8]
[425058252,1781447521000,-4182.59,0.00029863,8]
[425058248,1781447521000,-704.65,0.00029863,8]
[425058249,1781447521000,-1082.98,0.00029863,8]
[425058251,1781447521000,-500.0,0.00029863,8]
[425058247,1781447521000,-626.04,0.00029863,8]
[425058253,1781447521000,-702.05,0.00029863,8]
[425058255,1781447521000,-573.21937835,0.00029863,8]
[425058254,1781447521000,-500.0,0.00029863,8]
[425058256,1781447521000,-3026.85,0.00029863,8]
[425058243,1781447521000,-500.0,0.00029863,8]
[425058287,1781447521000,-1278.35,0.00029863,8]
[425058337,1781447521000,-1357.49,0.00029863,8]
[425058286,1781447521000,-500.0,0.00029863,8]
[425058326,1781447521000,-3216.2,0.00029863,8]
[425058319,1781447521000,-5973.16,0.00029863,8]
[425058321,1781447521000,-1090.91,0.00029863,8]
[425058325,1781447521000,-528.02,0.00029863,8]
[425058324,1781447521000,-181.82979013,0.00029863,8]
[425058327,1781447521000,-500.0,0.00029863,8]
[425058322,1781447521000,-500.0,0.00029863,8]
[425058329,1781447521000,-1440.23,0.00029863,8]
[425058338,1781447521000,-1129.02,0.00029863,2]
[425058339,1781447521000,-372.45740758,0.00029863,8]
[425058340,1781447521000,-500.0,0.00029863,8]
[425058328,1781447521000,-2562.95,0.00029863,8]
[425058320,1781447521000,-763.45,0.00029863,8]
[425058335,1781447521000,-2020.73,0.00029863,8]
[425058332,1781447521000,-1108.18,0.00029863,8]
[425058330,1781447521000,-605.58,0.00029863,8]
[425058333,1781447521000,-500.0,0.00029863,8]
[425058331,1781447521000,-500.0,0.00029863,8]
[425058336,1781447521000,-500.0,0.00029863,8]
[425058288,1781447521000,-500.0,0.00029863,8]
[425058341,1781447521000,-878.66,0.00029863,8]
[425058344,1781447521000,-500.0,0.00029863,8]
[425058342,1781447521000,-500.0,0.00029863,8]
[425058346,1781447521000,-839.66,0.00029863,8]
[425058347,1781447521000,-707.83,0.00029863,8]
[425058345,1781447521000,-500.0,0.00029863,8]
[425058334,1781447521000,-500.0,0.00029863,8]
[425058323,1781447521000,-3655.13,0.00029863,8]
[425058343,1781447521000,-529.83,0.00029863,8]
[425058316,1781447521000,-577.98,0.00029863,8]
[425058317,1781447521000,-1413.1,0.00029863,8]
[425058302,1781447521000,-557.28,0.00029863,8]
[425058293,1781447521000,-505.16,0.00029863,8]
[425058291,1781447521000,-500.0,0.00029863,8]
[425058295,1781447521000,-500.0,0.00029863,8]
[425058298,1781447521000,-2026.58,0.00029863,8]
[425058300,1781447521000,-589.03,0.00029863,8]
[425058297,1781447521000,-500.0,0.00029863,8]
[425058294,1781447521000,-677.78,0.00029863,8]
[425058299,1781447521000,-500.0,0.00029863,8]
[425058296,1781447521000,-500.0,0.00029863,8]